Cogmind - Beta 15 *** ADVENTURER MODE // 2025.08.12 @ 02:15:31 Player: nixie Result: Destroyed by HF-2P3(j) with Overtuned Pulse Rifle Performance ------------- Evolutions (0) 0 Regions Visited (4) 800 Robots Destroyed (14) 70 Value Destroyed (447) 447 Prototype IDs (4) 80 Alien Tech Used (0) 0 Bonus (800) 800 TOTAL SCORE: 2197 Bonus ------- Registered with UFD 300 Met Optimus in HQ 500 Cogmind --------- Core Integrity 0/250 Matter 300/300 Energy 160/160 System Corruption 0% Temperature Cool (12) Movement Walking (130) Location -8/Scraptown Parts ------- > --- POWER (1) -------- Light Nuclear Core > --- PROPULSION (2) --- Titanium Leg > --- UTILITY (2) ------ Scrap Suit > --- WEAPON (2) ------- Companion Sword > --- INVENTORY (5) ---- Improved Heat Sink Large Botcube Peak State ------------ > --- POWER ------------ Light Nuclear Core > --- PROPULSION ------- Carbon-fiber Leg Titanium Leg > --- UTILITY ---------- Scrap Suit > --- WEAPON ----------- Assault Cannon Companion Sword > --- INVENTORY -------- Improved Heat Sink Mining Laser Large Botcube [Rating: 28] Favorites ----------- Power Ion Engine Engine Ion Engine Power Core Light Nuclear Core Propulsion Carbon-fiber Leg Treads Light Treads Leg Carbon-fiber Leg Utility Improved Heat Sink Device Improved Heat Sink Storage Small Storage Unit Protection Scrap Shield Weapon Particle Gun Energy Gun Particle Gun Energy Cannon Subdweller Beam Cannon Ballistic Gun Light Assault Rifle Ballistic Cannon Assault Cannon Special Weapon Mining Laser Slashing Weapon Companion Sword Build | -11 -10 -10 -10 -8 ------- Run | Yrd Mat Min Sub Scr Slots Evolved . | . . . . . Power . | . . . . . Propulsion . | . . . . . Utility . | . . . . . Weapon . | . . . . . Parts Attached 24 | 6 2 6 2 8 Power 4 | 1 . 2 . 1 Engine 3 | 1 . 2 . . Core 1 | . . . . 1 Reactor . | . . . . . Propulsion 5 | 2 . 2 . 1 Treads 2 | 2 . . . . Leg 3 | . . 2 . 1 Wheel . | . . . . . Hover . | . . . . . Flight . | . . . . . Utility 5 | 1 . 1 1 2 Device 3 | . . 1 . 2 Storage 1 | 1 . . . . Processor . | . . . . . Hackware . | . . . . . Protection 1 | . . . 1 . Artifact . | . . . . . Weapon 10 | 2 2 1 1 4 Energy Gun 5 | 1 2 1 . 1 Energy Cannon 1 | . . . 1 . Ballistic Gun 1 | 1 . . . . Ballistic Cannon 1 | . . . . 1 Launcher . | . . . . . Special Weapon 1 | . . . . 1 Impact Weapon . | . . . . . Slashing Weapon 1 | . . . . 1 Piercing Weapon . | . . . . . Special Melee Weapon . | . . . . . Unidentified Prototypes 1 | . . . . 1 Parts Lost 6 | . . 2 2 2 Power 1 | . . 1 . . Propulsion 2 | . . . 1 1 Utility 1 | . . . 1 . Weapon 2 | . . 1 . 1 Highest Loss Streak 2 | . . 2 2 2 To Critical Strikes . | . . . . . Average Backups 4 | 1 3 5 3 3 Power . | . 1 1 . . Propulsion . | . . . . . Utility . | . . . 1 . Weapon 2 | . 2 3 2 3 Tool/Special . | . . . . . Unused Backups 2 | 1 . . 1 . Power . | . . . . . Propulsion . | . . . . . Utility . | . . . . . Weapon 2 | 1 . . 1 . Tool/Special . | . . . . . Average Slot Usage (%) 72 | . 85 90 82 61 Engine 12 | . 14 13 14 11 Core 1 | . . . . 2 Treads 5 | . 28 13 . . Leg 20 | . . 12 24 26 Device 9 | . . 6 5 12 Storage 4 | . 14 14 5 . Energy Gun 12 | . 25 28 25 3 Slashing Weapon 1 | . . . . 3 Peak Build Rating 28 | 6 8 17 17 28 Average Rating 12 | 4 7 12 14 13 On Entrance 7 | . 6 8 16 8 Naked Turns . | . . . . . Heaviest Build 31 | 10 14 19 31 18 Greatest Support 40 | 40 40 40 25 32 Greatest Overweight (x) 4 | . . 4 1 1 Average Overweight (x) . | . . . . . Largest Inventory Capacity 8 | 8 8 8 8 5 Average Capacity 6 | 6 8 8 6 5 Most Carried 8 | 5 5 8 7 5 Average Carried 4 | 1 3 5 3 4 Final Capacity 8 | 8 8 8 5 5 Final Carried 5 | 1 4 5 3 3 Class Distribution -------------------- 69% | Mutant 18% | Scavenger-Mutant 11% | Scrapper Dominant Class ---------------- Mutant | -10/Materials Scavenger-Mutant | -10/Mines Scavenger-Mutant | -10/Subcaves Mutant | -8/Scraptown Resources | -11 -10 -10 -10 -8 ----------- Run | Yrd Mat Min Sub Scr Matter Collected 465 | 231 . 134 1 99 Remotely . | . . . . . Salvage Created 590 | . 40 249 231 70 Parts 30 | . 2 7 16 5 Haulers Intercepted . | . . . . . Recyclers Shooed . | . . . . . Parts Field Recycled . | . . . . . Retrieved Matter . | . . . . . Parts Self-Destructed 3 | . . . 3 . Prevented . | . . . . . Kills | -11 -10 -10 -10 -8 ------- Run | Yrd Mat Min Sub Scr Combat Hostiles Destroyed 20 | . 1 13 5 1 Melee 1 | . . . . 1 Guns 19 | . 1 13 5 . Classes Destroyed 7 | . 1 3 2 1 Worker 1 | . . 1 . . Swarmer 3 | . . 3 . . Grunt 4 | . 1 3 . . Sentry 1 | . . . 1 . Subdweller 4 | . . . 4 . Scrapper 1 | . . . . 1 Assembled 7 | . . 7 . . Best Kill Streak 6 | . 1 6 3 1 Combat Bots Only 6 | . 1 6 3 1 Max Kills in Single Turn 2 | . 1 2 1 1 Gunslinging 1 | . . 1 . . Exploded . | . . . . . Melee 1 | . . . . 1 Uniques/NPCs Destroyed . | . . . . . Combat | -11 -10 -10 -10 -8 -------- Run | Yrd Mat Min Sub Scr Hostile Shots Fired 129 | . 13 77 24 15 Missed 24 | . 2 15 4 3 Hits 105 | . 11 62 20 12 Melee 3 | . . 3 . . Projectile 102 | . 11 59 20 12 Critical Strikes 3 | . . 1 1 1 Part Disruptions 3 | . . 3 . . Damage Taken 1159 | . 92 535 329 203 Core 259 | . 26 151 31 51 Absorbed by Shields . | . . . . . Ignored by Resistances 343 | . 30 163 94 56 Regen/Repaired (Parts) 14 | . . . . 14 Core Remaining (%) 100 | 100 . . . . Volleys Fired 59 | . 13 36 10 . Largest 2 | . 2 2 2 . Hottest 140 | . 130 140 140 . Shots Fired 99 | . 25 54 20 . Gun 99 | . 25 54 20 . Cannon . | . . . . . Launcher . | . . . . . Special . | . . . . . Kinetic . | . . . . . Thermal 99 | . 25 54 20 . Explosive . | . . . . . Electromagnetic . | . . . . . Robot Hit Streak 14 | . 7 14 11 . Robot Miss Streak 3 | . . 3 1 . Penetration Max . | . . . . . Secondary Targets 3 | . . 1 2 . Max Gunslinging Chain 1 | . . 1 1 . Shots Hit Robots 65 | . 7 39 18 1 Core Hits 29 | . 2 17 9 1 Critical Kills . | . . . . . Critical Parts Destroyed . | . . . . . Critical Strikes 4 | . . 3 1 . Burn 4 | . . 3 1 . Melee Attacks 1 | . . . . 1 Impact . | . . . . . Slashing 1 | . . . . 1 Piercing . | . . . . . Sneak Attacks . | . . . . . Combat Hostiles . | . . . . . Follow-up Attacks . | . . . . . Damage Inflicted 1167 | . 104 696 323 44 Guns 1123 | . 104 696 323 . Cannons . | . . . . . Explosions . | . . . . . Melee 44 | . . . . 44 Ramming . | . . . . . Kinetic . | . . . . . Thermal 1123 | . 104 696 323 . Explosive . | . . . . . Electromagnetic . | . . . . . Impact . | . . . . . Slashing 44 | . . . . 44 Piercing . | . . . . . Highest Corruption . | . . . . . Average Corruption . | . . . . . Corruption Purged . | . . . . . Corruption Blocked . | . . . . . Overload Shots . | . . . . . Overflow Damage . | . . . . . Projectiles . | . . . . . Explosions . | . . . . . Melee . | . . . . . Knockbacks . | . . . . . Impact . | . . . . . Kinetic . | . . . . . Secondary . | . . . . . Self-Inflicted Damage . | . . . . . Shots . | . . . . . Rammed . | . . . . . Targets Rammed . | . . . . . Kicked . | . . . . . Crushed . | . . . . . Highest Temperature 414 | . 414 363 117 22 Average Temperature 128 | . 165 125 42 11 Received Heat Transfer 796 | . 66 516 45 169 Effects 1 | . 1 . . . Interference 1 | . 1 . . . Siege Activations . | . . . . . Martial Activations . | . . . . . Shielding Activations . | . . . . . Robots Disrupted . | . . . . . Combat Hostiles . | . . . . . Robots Corrupted . | . . . . . Combat Hostiles . | . . . . . Parts Fried . | . . . . . Impact Corruptions . | . . . . . Robots Melted . | . . . . . Combat Hostiles . | . . . . . Parts Melted 3 | . . 2 1 . Heat Transferred 2664 | . 259 1665 740 . Parts Sabotaged . | . . . . . Parts Stolen . | . . . . . Parts Stripped . | . . . . . Power Chain Reactions . | . . . . . Alert | -11 -10 -10 -10 -8 ------- Run | Yrd Mat Min Sub Scr Maximum Alert Level . | . . . . . Low Security (%) 100 | 100 100 100 . . Level 1 . | . . . . . Level 2 . | . . . . . Level 3 . | . . . . . Level 4 . | . . . . . Level 5 . | . . . . . High Security . | . . . . . Max Security . | . . . . . Peak Influence 96 | . 20 96 . . Initial 6 | . . 6 . . Average 11 | . 1 15 . . Influence Increases 195 | . 20 155 20 . Destroy 0b10 Robot/C 160 | . 20 120 20 . Destroy 0b10 Robot/NC 5 | . . 5 . . Destroy Leader 30 | . . 30 . . Influence Decreases 195 | . . 175 20 . Entered New Map 14 | . . 14 . . Time Decay 181 | . . 161 20 . Squads Dispatched . | . . . . . Investigation . | . . . . . Extermination . | . . . . . Reinforcement . | . . . . . Assault . | . . . . . Garrison . | . . . . . Intercept . | . . . . . Searches Triggered . | . . . . . Construction Impeded . | . . . . . Haulers Reinforced . | . . . . . Active Scanning Responses . | . . . . . Cargo Convoy Interrupts . | . . . . . Stealth | -11 -10 -10 -10 -8 --------- Run | Yrd Mat Min Sub Scr Distress Signals . | . . . . . Communications Jammed . | . . . . . Distress Signals . | . . . . . Times Spotted 30 | . 3 13 12 2 Peak Tracking Total 6 | . 2 6 5 1 Tactical Retreats . | . . . . . Traps | -11 -10 -10 -10 -8 ------- Run | Yrd Mat Min Sub Scr Traps Triggered . | . . . . . Indirectly . | . . . . . Trap Hack Attempts . | . . . . . Triggered . | . . . . . Disarmed . | . . . . . Reprogrammed . | . . . . . Reused . | . . . . . Traps Extracted . | . . . . . Installed . | . . . . . Triggered . | . . . . . Machines | -11 -10 -10 -10 -8 ---------- Run | Yrd Mat Min Sub Scr Machines Disabled . | . . . . . Max in Single Turn . | . . . . . Machines Repaired . | . . . . . Machines Dismantled . | . . . . . Machines Sabotaged . | . . . . . Overloaded Fab Kills . | . . . . . Hacking | -11 -10 -10 -10 -8 --------- Run | Yrd Mat Min Sub Scr Machines Accessed 10 | . . . . 10 Terminals . | . . . . . Fabricators . | . . . . . Repair Stations . | . . . . . Recycling Units . | . . . . . Scanalyzers . | . . . . . Garrison Access . | . . . . . Total Hacks 69 | . . . . 69 Successful 69 | . . . . 69 Failed . | . . . . . Catastrophic . | . . . . . Database Lockouts . | . . . . . Manual . | . . . . . Terminals . | . . . . . Fabricators . | . . . . . Repair Stations . | . . . . . Recycling Units . | . . . . . Scanalyzers . | . . . . . Garrison Access . | . . . . . Terminal Hacks 69 | . . . . 69 Record 62 | . . . . 62 Robot Analysis 6 | . . . . 6 Open Door 1 | . . . . 1 Fabricator Hacks . | . . . . . Repair Station Hacks . | . . . . . Recycling Unit Hacks . | . . . . . Scanalyzer . | . . . . . Garrison Access Hacks . | . . . . . Unauthorized Hacks . | . . . . . Terminals . | . . . . . Fabricators . | . . . . . Repair Stations . | . . . . . Recycling Units . | . . . . . Scanalyzers . | . . . . . Garrison Access . | . . . . . Data Cores Recovered . | . . . . . Used . | . . . . . Hacking Detections . | . . . . . Full Trace Events . | . . . . . Feedback Events . | . . . . . Feedback Blocked . | . . . . . Robot Schematics Acquired . | . . . . . Robots Built . | . . . . . Authchips . | . . . . . Time . | . . . . . Total Robot Build Rating . | . . . . . Part Schematics Acquired . | . . . . . Parts Built . | . . . . . Authchips . | . . . . . Time . | . . . . . Total Part Build Rating . | . . . . . Parts Repaired . | . . . . . Time . | . . . . . Parts Recycled . | . . . . . Recycled Matter . | . . . . . Retrieved Matter . | . . . . . Retrieved Components . | . . . . . Parts Scanalyzed . | . . . . . Part Schematics Acquired . | . . . . . Parts Damaged . | . . . . . Bothacking | -11 -10 -10 -10 -8 ------------ Run | Yrd Mat Min Sub Scr Used RIF Installer . | . . . . . Robots Hacked . | . . . . . Non-combat . | . . . . . Combat . | . . . . . Robot Hacks Applied . | . . . . . Relay Couplers Released . | . . . . . Fabnet Peak Effective % . | . . . . . Robots Rewired . | . . . . . Allies Hacked . | . . . . . Hacks Repelled . | . . . . . Allies | -11 -10 -10 -10 -8 -------- Run | Yrd Mat Min Sub Scr Total Allies . | . . . . . Largest Group . | . . . . . Highest-Rated Group . | . . . . . Highest-Rated Ally . | . . . . . Total Orders . | . . . . . Ally Attacks . | . . . . . Total Damage . | . . . . . Kills . | . . . . . Allies Corrupted . | . . . . . Allies Melted . | . . . . . Intel | -11 -10 -10 -10 -8 ------- Run | Yrd Mat Min Sub Scr Active Infowar (turns) . | . . . . . Robot Analysis Total 6 | . . . . 6 Derelict Logs Recovered 2 | . . 1 . 1 Drone Launches . | . . . . . Drone Recoveries . | . . . . . Exploration | -11 -10 -10 -10 -8 ------------- Run | Yrd Mat Min Sub Scr Turns Passed 3464 | 76 215 845 307 2021 Spaces Moved 2371 | 47 99 447 179 1599 Core 14 | 11 . 3 . . Treads 363 | 36 99 228 . . Legs 1994 | . . 216 179 1599 Wheels . | . . . . . Hover . | . . . . . Flight . | . . . . . Fastest Speed 50 | 50 160 120 120 120 Average Speed 131 | 134 160 141 149 124 Slowest Speed 250 | 160 160 250 190 190 Overloaded Moves . | . . . . . Propulsion Burnouts . | . . . . . Robots Hopped . | . . . . . Potential Cave-ins . | . . . . . Cave-ins Triggered . | . . . . . Exploration Rate (%) 41 | 4 29 81 14 79 Regions Visited 4 Branch Regions 3 Pre-discovered Areas 2 | . . 1 . 1 Known Exits Taken . | . . . . . Unknown Exits Taken 4 | 1 1 1 1 . Scrap Searched 3 | . . 1 . 2 Spaces Dug . | . . . . . Terrain Destroyed . | . . . . . Melee . | . . . . . Projectile . | . . . . . AOE . | . . . . . Terrain Rammed . | . . . . . Walls Destroyed . | . . . . . Machines Disabled . | . . . . . Actions | -11 -10 -10 -10 -8 --------- Run | Yrd Mat Min Sub Scr Total 2637 | 61 131 607 205 1633 Wait 120 | . 11 106 . 3 Move 2367 | 46 98 446 178 1599 Hop . | . . . . . Pick Up 34 | 8 5 6 6 9 Fast Attach . | . . . . . Attach 21 | 6 . 7 1 7 Detach 5 | . . 2 . 3 Swap 8 | . 2 2 1 3 Drop 22 | 1 2 2 9 8 Fire 59 | . 13 36 10 . Melee 1 | . . . . 1 Ram . | . . . . . Kick . | . . . . . Crush . | . . . . . Escape Stasis . | . . . . . Rewire . | . . . . . Trap . | . . . . . Miscellaneous . | . . . . . Route ------- -11/Scrapyard -10/Materials (discovered 2 exits: [*Mat] / [*Min]) -10/Mines (discovered 2 exits: [*Mat] / [*Sub]) -10/Subcaves -8/Scraptown History --------- Turn | Location | Event 8 | -11/Scrapyard | Discovered new exit (range 13) 77 | -11/Scrapyard | Entered Materials 232 | -10/Materials | Discovered new exit (range 13) 264 | -10/Materials | Discovered new exit (range 7) 292 | -10/Materials | Entered Mines 292 | -10/Mines | Discovered new exit (range 9) 296 | -10/Mines | Learned 2 Materials zone layouts 306 | -10/Mines | Build established: Mutant 331 | -10/Mines | Met a Derelict bent on vengeance 459 | -10/Mines | Assembled infested the area 791 | -10/Mines | Found DCF Scrap (14 items) 828 | -10/Mines | Core integrity fell below 50% 947 | -10/Mines | Learned location of Storage (-8) 998 | -10/Mines | Build established: Scavenger-Mutant 1025 | -10/Mines | Discovered new exit (range 6) 1137 | -10/Mines | Entered Subcaves 1138 | -10/Subcaves | Approached by a straggling Scientist 1158 | -10/Subcaves | Disturbed a concealed Subdweller 1335 | -10/Subcaves | Ambushed by swarm of Subdwellers 1344 | -10/Subcaves | Ambushed by Subdwellers from Twisted Machinery 1357 | -10/Subcaves | Core integrity fell below 20% 1441 | -10/Subcaves | Scientist uncovered a shortcut to Scraptown 1444 | -10/Subcaves | Entered Scraptown 1604 | -8/Scraptown | Learned location of Extension (-4) 1649 | -8/Scraptown | Build established: Mutant 1966 | -8/Scraptown | Scanned Subdweller tech in exchange for log data 1969 | -8/Scraptown | Learned Research stockpile data 2212 | -8/Scraptown | Visited TADAMA 2232 | -8/Scraptown | Visited Cyclists 2268 | -8/Scraptown | Visited Fellowship of the Rings 2314 | -8/Scraptown | Visited UFD Registry 2314 | -8/Scraptown | Registered with UFD as "Nukeslasher" 2338 | -8/Scraptown | Visited Symbiants 2641 | -8/Scraptown | Entered Cyclist Reading Room 2712 | -8/Scraptown | Visited Red Mages 2829 | -8/Scraptown | Visited Curators Association 2893 | -8/Scraptown | Visited Analyses Database 2967 | -8/Scraptown | Visited Sword Containment 3066 | -8/Scraptown | Visited Scrap Suit Storage 3087 | -8/Scraptown | Found Scrap Suit 3164 | -8/Scraptown | Visited Botcube Research 3174 | -8/Scraptown | Found Lrg. Botcube 3195 | -8/Scraptown | Visited Junk Repository 3340 | -8/Scraptown | Met Optimus 3340 | -8/Scraptown | Accepted into 0bPrime 3383 | -8/Scraptown | Build established: Scrapper 3433 | -8/Scraptown | Civil war broke out across Scraptown 3465 | -8/Scraptown | Destroyed by HF-2P3(j) with Overtuned Pulse Rifle Last Messages --------------- out of here and do your job, we'll deal with this." Slug penetrates Machine. Machine disabled. Optimus: "No holds barred, if they're hostile, they are an enemy of the people and we must shoot to kill. Collateral damage is to be expected!" Mining Laser destroyed. Critical hit (Burn: +50). Carbon-fiber Leg destroyed. U5-K8M(j) destroyed. HF-2P3(j): "Can we win this? Even if we take Scraptown, they'll hit us from Junction 34." Acquired 70 matter. Scrap Suit cannibalized Ovr. Titanium Leg to repair Titanium Leg. Machine disabled. Scrap Suit cannibalized Ovr. Titanium Leg to repair Titanium Leg. Map ----- +----------------------------------------------------+ | ?????????????????????????????????????????????????? | | ?????????????????????????????????????????????????? | | ?????????????????????????????????????????????????? | | ?????????????????????????????????????????????????? | | ?????????????????????????????????????????????????? | | ????????????????????????????????????????? ?????? | | ????????????????????????????????????????? ?????? | | ????????????????????????????????????????? ?????? | | ????????????????????????????????????????? ?????? | | ?????????????????????????????????????????# ?????? | | ????????###?###??????????????????????????# ###### | | ????????#"###"#??????????????????????????# # | | ?????#### "$" ####???????????????##??##??# # | | ?????#" """ "#???????????????# #? #### # | | ??????#"" ""#???????????????## ? # ## # | | ??????#/" "&#????##########?# # ## # | | ?????##"" ""##???#""""""""### ## # | | ?????#" "#???#" X " ""## ## ##### | | ?????##"" ""##???#" ""## ## ##### | | ??????#!" "=#????#"" """### # ## [ | | ?????##"" ""##???# =% #? # ## | | ?????#" "#???# !! #???"""""??# ## | | ?????####### #####???###!######????# #???# ## ### | | ???????##### ########### ########### ##### ## ##? | | ???????#"""" """"""""""" """"""""""" """"" "" "#? | | ???????#" j@ * "#? | | ???????#" ! "#? | | ???????#" ! "#? | | ???????#" "## | | ????####" | | ????"""" """""""""""""""" """"""""""" "## | | ????"""" """""""""""""""""""""""""""" "#? | | ????"""" ""###### ################"" "#? | | ????"""" ""# ##????????#"" "## | | ????"""" ""# X"#????????#"" "## | | ##??"""" ""# "" "" ##????????#"" "## | | "#"#"""" ""# "" "" X"#??????###"" "## | | """#"""" ""# " " ######### #"" "## | | "#######" "" "" ] | | ##?????#" "" "" "## | | ########" ""# " " ######### #"" "## | | ""# "" "" ""#??????###"" "## | | ""# "" "" ##????????#"" "## | | ""# X"#????????#"" #? | | ""# ##????????#"" "#? | | ""###### ################"" "#? | | """""""""""""""""""""""""""" "## | | """""""""""""""""""""""""""" | | "## | | "#? | +----------------------------------------------------+ Best States ------------- Heat Dissipation 39 Energy Generation 14 Energy Capacity 250 Matter Stores 300 Matter Capacity 300 Sight Range 16 Terrain Scan Density 10 Armor Coverage 800 Resistance: KI 20 Resistance: TH 20 Resistance: EX 20 Resistance: EM 20 Resistance: I 20 Resistance: S 20 Resistance: P 20 Evasion (%) 55 Recoil Reduction 2 Offensive Hacking 10 Item Schematics ----------------- None Robot Schematics ------------------ None Fabricated ------------ Nothing Repaired ---------- Nothing Alien Tech Used ----------------- None Achievements -------------- Armchair Analyst Challenges ------------ None Game ------ Seed MultinovaStasisAccelerator Manual? 0 Play Time 00:50:43 Cumulative 11.1 hours Start 2025.08.11 @ 22:57:17 End 2025.08.12 @ 02:15:31 Sessions 1 Manual Loads 0 Difficulty Adventurer Special Mode None Game No. 24 Rogue 11 Adventurer 13 Explorer 0 Win Type - Total 0 Types 0/0/0/0/0/0/0/0/0/0 Lore% 18 Gallery% 18 Achievement% 16 Wizard Run 0 Options --------- Layout 1 ASCII 0 Keyboard 0 Movement Mouse Keybinds 0 Fullscreen 2 Font 32/Tamsyn Map View 25x20 Zoom Use 79% Tactical HUD 0 Map Filters NONE Filters NONE Steam 1 RUN: d248014c-c7f9-4f5d-9b08-fccf23203cc5